bitfinex/quotes_BTCUSD_20250505
["timestamp","ask_amount","ask_price","bid_price","bid_amount"]
[1746430706976,0.7538,94863.0,94862.0,8.10254393]
[1746430707356,0.4138,94863.0,94862.0,8.10254393]
[1746430709052,0.01054029,94874.0,94873.0,0.3321]
[1746430709703,0.35054007,94876.0,94873.0,0.3]
[1746430709857,0.35054007,94876.0,94874.0,0.032]
[1746430710059,0.35054007,94876.0,94873.0,0.3]
[1746430710458,0.35054007,94876.0,94875.0,0.0284]
[1746430710660,0.36706387,94876.0,94875.0,0.0284]
[1746430711059,0.36706387,94876.0,94875.0,0.0264]
[1746430711259,0.37006387,94876.0,94875.0,0.0264]
[1746430712003,0.37006387,94876.0,94875.0,0.0284]
[1746430712664,0.37006387,94876.0,94875.0,0.0304]
[1746430716488,0.37006387,94876.0,94875.0,0.03044]
[1746430726132,0.0195238,94876.0,94875.0,0.03044]
[1746430726337,0.343,94876.0,94875.0,0.03044]
[1746430728168,0.003,94876.0,94875.0,0.24124368]
[1746430730944,0.01952313,94876.0,94875.0,0.24124368]
[1746430737610,0.01952313,94876.0,94875.0,0.03044]
[1746430737971,0.57032459,94876.0,94875.0,0.33044]
[1746430738154,0.57032459,94876.0,94875.0,0.30404]
[1746430738962,0.57032459,94876.0,94875.0,0.33524]
[1746430740313,0.57032459,94876.0,94875.0,0.31934]
[1746430740509,0.57032459,94876.0,94875.0,0.30404]
[1746430740709,0.35952313,94876.0,94875.0,0.30404]
[1746430742423,0.343,94876.0,94875.0,0.30404]
[1746430743900,0.343,94876.0,94875.0,0.32054]
[1746430744591,0.343,94876.0,94875.0,0.30404]
[1746430747022,0.343,94876.0,94875.0,0.33494]
[1746430750742,0.343,94876.0,94875.0,0.33294]
[1746430751183,0.34,94876.0,94875.0,0.33394]
[1746430751554,0.34,94876.0,94875.0,0.33694]
[1746430752569,0.35652257,94876.0,94875.0,0.33694]
[1746430754339,0.35652257,94876.0,94875.0,0.30604]
[1746430754565,0.34,94876.0,94875.0,0.30604]
[1746430764707,0.35652265,94876.0,94875.0,0.30604]
[1746430766538,0.35652265,94876.0,94875.0,0.33764]
[1746430769937,0.35652265,94876.0,94875.0,0.0376]
[1746430771243,0.34,94876.0,94875.0,0.0376]
[1746430775417,0.35652259,94876.0,94875.0,0.0376]
[1746430778107,0.35652259,94876.0,94875.0,0.33886949]
[1746430778295,0.35652259,94876.0,94875.0,0.3376]
[1746430779646,0.34,94876.0,94875.0,0.3376]
[1746430784136,0.35652225,94876.0,94875.0,0.3376]
[1746430794660,0.34,94876.0,94875.0,0.3376]
[1746430799895,0.34,94876.0,94875.0,0.306]
[1746430800969,0.35652218,94876.0,94875.0,0.306]
[1746430804341,0.35652218,94876.0,94875.0,0.51680368]
[1746430806096,0.35652218,94876.0,94875.0,0.306]
[1746430811322,0.34,94876.0,94875.0,0.306]
[1746430814641,0.34,94876.0,94875.0,0.30578875]
[1746430818096,0.34,94876.0,94875.0,0.30582875]
[1746430818313,0.35652243,94876.0,94875.0,0.30582875]
[1746430819139,0.34,94876.0,94875.0,0.30582875]
[1746430821046,0.35652241,94876.0,94875.0,0.30582875]
[1746430833156,0.35652241,94876.0,94875.0,0.33862875]
[1746430833356,0.35652241,94876.0,94875.0,0.33982875]
[1746430834578,0.34,94876.0,94875.0,0.33982875]
[1746430841818,0.35652219,94876.0,94875.0,0.33982875]
[1746430843073,0.35652219,94876.0,94875.0,0.32352875]
[1746430846431,0.34,94876.0,94875.0,0.32352875]
[1746430847533,0.34,94876.0,94875.0,0.30702875]
[1746430850771,0.34,94876.0,94875.0,0.33842875]
[1746430850983,0.35652214,94876.0,94875.0,0.33842875]
[1746430855318,0.35652214,94876.0,94875.0,0.33564]
[1746430855695,0.35652214,94876.0,94875.0,0.33864]
[1746430856183,0.35652214,94876.0,94875.0,0.33564]
[1746430856360,0.35652214,94876.0,94875.0,0.33964]
[1746430858615,0.01652214,94876.0,94875.0,0.33964]
[1746430858825,0.13530611,94890.0,94886.0,0.51077925]
[1746430859042,0.34,94889.0,94886.0,0.54267925]
[1746430859252,0.34,94889.0,94886.0,0.52131821]
[1746430859455,0.34007637,94889.0,94888.0,0.2423748]
[1746430860002,7.637e-05,94889.0,94888.0,0.2423748]
[1746430860771,7.637e-05,94889.0,94888.0,0.2443748]
[1746430861312,7.637e-05,94889.0,94888.0,0.2127748]
[1746430863506,0.01659611,94889.0,94888.0,0.2127748]
[1746430864816,7.637e-05,94889.0,94888.0,0.2127748]
[1746430867662,7.637e-05,94889.0,94888.0,0.2451748]
[1746430870593,0.01659578,94889.0,94888.0,0.2451748]
[1746430874643,0.01659578,94889.0,94888.0,0.2127748]
[1746430883902,0.01659578,94889.0,94888.0,0.2446748]
[1746430891034,7.637e-05,94889.0,94888.0,0.2446748]
[1746430897145,7.637e-05,94889.0,94888.0,0.2127748]
[1746430897392,0.33887637,94899.0,94898.0,0.51075259]
[1746430897548,0.0159,94902.0,94900.0,0.0105374]
[1746430898717,0.0169,94902.0,94900.0,0.0105374]
[1746430898923,0.0189,94902.0,94900.0,0.0105374]
[1746430901604,0.003,94902.0,94901.0,0.21074593]
[1746430902409,6.221e-05,94903.0,94901.0,0.21074593]
[1746430902790,0.003,94902.0,94901.0,0.21074593]
[1746430903148,0.003,94902.0,94900.0,0.0105374]
[1746430903347,0.001,94902.0,94900.0,0.0105374]
[1746430904295,0.00206221,94903.0,94900.0,0.0105374]
[1746430904449,0.00306221,94903.0,94900.0,0.0105374]
[1746430905000,0.001,94902.0,94900.0,0.0105374]
[1746430905175,6.221e-05,94903.0,94901.0,0.21074593]
[1746430905377,0.002,94902.0,94901.0,0.21074593]
[1746430906103,0.00106221,94903.0,94901.0,0.21074593]
[1746430906403,0.00306221,94903.0,94901.0,0.21074593]
[1746430906704,0.00306221,94903.0,94900.0,0.0105374]
[1746430907287,0.00206221,94903.0,94900.0,0.0105374]
[1746430907926,0.00306221,94903.0,94900.0,0.0105374]
[1746430908454,0.00406221,94903.0,94900.0,0.0105374]
[1746430908687,0.00206221,94903.0,94900.0,0.0105374]
[1746430908880,0.00406221,94903.0,94900.0,0.0105374]
[1746430909057,0.00406221,94903.0,94901.0,0.21074593]
[1746430909597,0.00406221,94903.0,94900.0,0.0105374]
[1746430909950,0.00206221,94903.0,94900.0,0.0105374]
[1746430910311,0.00406221,94903.0,94900.0,0.0105374]
[1746430910536,0.34,94902.0,94900.0,0.0105374]
[1746430911664,0.341,94902.0,94900.0,0.0105374]
[1746430912709,0.343,94902.0,94900.0,0.0105374]
[1746430914542,0.003,94902.0,94900.0,0.0105374]
[1746430920873,0.003,94902.0,94900.0,0.22128404]
[1746430921529,0.003,94902.0,94900.0,0.22128553]
[1746430921930,0.003,94902.0,94901.0,0.0312]
[1746430923295,0.001,94902.0,94901.0,0.03246798]
[1746430923495,6.221e-05,94903.0,94902.0,0.24274371]
[1746430924592,6.221e-05,94903.0,94902.0,0.24074371]
[1746430924796,6.221e-05,94903.0,94902.0,0.24274371]
[1746430925430,6.221e-05,94903.0,94902.0,0.24374371]
[1746430939448,6.221e-05,94903.0,94902.0,0.59230371]
[1746430967593,6.221e-05,94903.0,94902.0,0.57660371]
[1746430968680,6.221e-05,94903.0,94902.0,0.59180371]
[1746430969761,0.13530611,94912.0,94911.0,0.51072373]
[1746430969957,0.14584129,94920.0,94917.0,0.01053552]
[1746430969958,0.13537309,94920.0,94917.0,0.01053552]
[1746430970161,6.698e-05,94920.0,94916.0,0.01053563]
[1746430970408,6.698e-05,94920.0,94917.0,0.01053552]
[1746430970762,6.698e-05,94920.0,94917.0,0.22124397]
[1746430976733,6.698e-05,94920.0,94919.0,0.24220597]
[1746430976929,0.001,94929.0,94928.0,0.51068599]
[1746430977163,0.13530611,94940.0,94939.0,0.51066158]
[1746430977164,0.27061222,94940.0,94939.0,0.51066158]
[1746430977355,0.0318,94945.0,94942.0,0.01053274]
[1746430977557,0.02610418,94945.0,94942.0,0.01053274]
[1746430977856,0.02610418,94945.0,94939.0,0.51066158]
[1746430977857,0.02603274,94942.0,94939.0,0.3]
[1746430977995,0.06735115,94941.0,94939.0,0.3]
[1746430980067,0.03254802,94941.0,94939.0,0.3]
[1746430980414,0.03254802,94941.0,94940.0,0.21065936]
[1746430981905,0.0164,94944.0,94941.0,0.01053285]
[1746430982135,0.0156,94943.0,94941.0,0.01053285]
[1746430983040,0.001,94944.0,94942.0,0.22118766]
[1746430983880,0.001,94943.0,94942.0,0.22118766]
[1746430985164,0.0156,94944.0,94942.0,0.22118766]
[1746430985576,0.0166,94944.0,94942.0,0.22118766]
[1746430986601,0.001,94944.0,94942.0,0.22118766]
[1746430986922,0.002,94944.0,94942.0,0.22118766]
[1746430989535,0.001,94944.0,94942.0,0.22118766]
[1746430989708,7.177e-05,94945.0,94942.0,0.22118766]
[1746430990213,7.177e-05,94945.0,94942.0,0.22218766]
[1746430990892,7.177e-05,94945.0,94942.0,0.22118766]
[1746430998196,7.177e-05,94945.0,94942.0,0.25378766]
[1746430999260,7.177e-05,94945.0,94942.0,0.22118766]
[1746430999461,7.177e-05,94945.0,94942.0,0.22318766]
[1746430999785,7.177e-05,94945.0,94942.0,0.25488766]
[1746430999988,7.177e-05,94945.0,94944.0,0.21065048]
[1746431002907,7.177e-05,94945.0,94944.0,0.21265048]
[1746431003480,7.177e-05,94945.0,94944.0,0.24295048]
[1746431003633,0.13530611,94960.0,94957.0,0.22115122]
[1746431003823,0.61068398,94967.0,94966.0,0.31053008]
[1746431004008,7.176e-05,94967.0,94966.0,0.31053008]
[1746431004826,7.176e-05,94967.0,94966.0,0.01053008]
[1746431005283,7.176e-05,94967.0,94964.0,0.21060429]
[1746431005500,7.176e-05,94967.0,94964.0,0.22113459]
[1746431005701,0.03254802,94966.0,94964.0,0.22113459]
[1746431005981,0.00407176,94967.0,94964.0,0.22113459]
[1746431006174,0.00107176,94967.0,94964.0,0.22113459]
[1746431006478,0.00207176,94967.0,94964.0,0.22113459]
[1746431006984,0.00107176,94967.0,94964.0,0.22113459]
[1746431009377,7.176e-05,94967.0,94964.0,0.22113459]
[1746431010871,7.176e-05,94967.0,94964.0,0.22213459]
[1746431021195,0.01607176,94967.0,94964.0,0.22213459]
[1746431021396,0.01607176,94967.0,94966.0,0.21060168]
[1746431021758,7.176e-05,94967.0,94966.0,0.21060168]
[1746431022933,0.56120341,94967.0,94966.0,0.3]
[1746431023070,0.62585233,94967.0,94966.0,0.3]
[1746431023268,0.62585233,94967.0,94966.0,0.301]
[1746431023771,0.39885065,94967.0,94966.0,0.301]
[1746431024144,0.35060173,94967.0,94966.0,0.301]
[1746431035658,0.01060173,94967.0,94966.0,0.301]
[1746431037877,0.04022093,94967.0,94966.0,0.301]
[1746431038510,0.01060173,94967.0,94966.0,0.301]
[1746431038679,0.04022977,94967.0,94966.0,0.301]
[1746431039318,0.04286239,94967.0,94966.0,0.301]
[1746431040430,0.04022977,94967.0,94966.0,0.301]
[1746431040722,0.59346187,94967.0,94966.0,0.301]
[1746431040933,0.59082924,94967.0,94966.0,0.301]
[1746431041820,0.38022977,94967.0,94966.0,0.301]
[1746431042447,0.35060173,94967.0,94966.0,0.301]
[1746431042665,0.59083047,94967.0,94966.0,0.301]
[1746431044547,0.5612012,94967.0,94966.0,0.301]
[1746431044747,0.59083024,94967.0,94966.0,0.301]
[1746431047010,0.5612012,94967.0,94966.0,0.301]
[1746431047179,0.59083104,94967.0,94966.0,0.301]
[1746431049059,0.5612012,94967.0,94966.0,0.301]
[1746431049311,0.59083162,94967.0,94966.0,0.301]
[1746431059159,0.36970218,94967.0,94966.0,0.3323]
[1746431060316,0.34007176,94967.0,94966.0,0.3323]
[1746431065641,0.34007176,94967.0,94966.0,0.3163]
[1746431066846,0.34007176,94967.0,94966.0,0.301]
[1746431067121,0.37283829,94967.0,94966.0,0.301]
[1746431067937,0.40787712,94967.0,94966.0,0.301]
[1746431068316,0.37283829,94967.0,94966.0,0.301]
[1746431069948,0.34007176,94967.0,94966.0,0.301]
[1746431076739,0.37283829,94967.0,94966.0,0.301]
[1746431080255,0.40246702,94967.0,94966.0,0.301]
[1746431085510,0.61306649,94967.0,94966.0,0.301]
[1746431086309,0.58029996,94967.0,94966.0,0.301]
[1746431086545,0.36970049,94967.0,94966.0,0.301]
[1746431090574,0.58029996,94967.0,94966.0,0.301]
[1746431091631,0.36970049,94967.0,94966.0,0.301]
[1746431094511,0.58029996,94967.0,94966.0,0.301]
[1746431098660,0.36970049,94967.0,94966.0,0.301]
[1746431099456,0.34007176,94967.0,94966.0,0.54430168]
[1746431100813,0.34007176,94967.0,94966.0,0.51160168]
[1746431101330,0.34007176,94967.0,94966.0,0.54270168]
[1746431101953,0.34007176,94967.0,94966.0,0.51160168]
[1746431103700,0.34007176,94967.0,94966.0,0.52750168]
[1746431107351,0.34007176,94967.0,94966.0,0.51160168]
[1746431114797,7.176e-05,94967.0,94966.0,0.54420168]
[1746431128692,7.176e-05,94967.0,94966.0,0.54720168]
[1746431129080,7.176e-05,94967.0,94966.0,0.54620168]
[1746431129478,7.176e-05,94967.0,94966.0,0.54920168]
[1746431146780,7.176e-05,94967.0,94966.0,0.89752168]
[1746431153738,0.03299175,94967.0,94966.0,0.51660168]
[1746431153940,0.10000053,94967.0,94966.0,0.306]
[1746431154145,0.03187176,94967.0,94966.0,0.306]
[1746431157995,0.01657176,94967.0,94966.0,0.306]
[1746431161764,7.176e-05,94967.0,94966.0,0.306]
[1746431174494,7.176e-05,94967.0,94966.0,0.51660168]
[1746431186340,7.176e-05,94967.0,94966.0,0.306]
[1746431192074,0.01657718,94967.0,94966.0,0.306]
[1746431193121,7.176e-05,94967.0,94966.0,0.306]
[1746431196377,0.01657725,94967.0,94966.0,0.306]
[1746431196548,7.176e-05,94967.0,94966.0,0.306]
[1746431197488,0.43756151,94967.0,94966.0,0.006]
[1746431197696,1.10964308,94967.0,94966.0,0.006]
[1746431197906,1.13927446,94967.0,94966.0,0.006]
[1746431198202,0.74269646,94967.0,94966.0,0.006]
[1746431198525,0.74269646,94967.0,94966.0,0.003]
[1746431198678,0.74269646,94967.0,94955.0,0.34832]
[1746431198679,0.0308,94957.0,94955.0,0.34832]
[1746431198891,0.03343296,94956.0,94955.0,0.34832]
[1746431199358,0.38994046,94956.0,94955.0,0.34832]
[1746431199568,0.3873075,94956.0,94955.0,0.34832]
[1746431200476,0.3883075,94956.0,94955.0,0.34832]
[1746431200672,0.3883075,94956.0,94944.0,0.01053252]
[1746431200673,0.01053219,94947.0,94944.0,0.01053252]
[1746431201222,0.01053219,94947.0,94946.0,0.3]
[1746431201785,0.0026331,94949.0,94946.0,0.3]
[1746431202427,0.0026331,94949.0,94946.0,0.3105323]
[1746431203236,0.0158,94948.0,94946.0,0.3]
[1746431203441,0.01843308,94947.0,94946.0,0.3]
[1746431203637,0.01843308,94947.0,94946.0,0.301]
[1746431204269,0.01843308,94947.0,94946.0,0.3]
[1746431204589,0.00263308,94947.0,94946.0,0.303]
[1746431204792,0.00263308,94947.0,94946.0,0.301]
[1746431205290,0.00263308,94947.0,94946.0,0.303]
[1746431207114,0.34263308,94947.0,94946.0,0.303]
[1746431207276,0.45198458,94947.0,94946.0,0.303]
[1746431207477,0.43578458,94947.0,94946.0,0.303]
[1746431207757,0.34,94947.0,94946.0,0.303]
[1746431209410,0.35650869,94947.0,94946.0,0.303]
[1746431215130,0.34,94947.0,94946.0,0.303]
[1746431216357,0.01053196,94949.0,94946.0,0.303]
[1746431216561,0.34,94948.0,94946.0,0.303]
[1746431217221,0.55064383,94947.0,94946.0,0.301]
[1746431217421,0.55064383,94947.0,94946.0,0.3]
[1746431217673,0.55064383,94947.0,94946.0,0.301]
[1746431217993,0.55064383,94947.0,94946.0,0.3]
[1746431218195,0.56715243,94947.0,94946.0,0.301]
[1746431219353,0.56715243,94947.0,94946.0,0.302]
[1746431219718,0.56715243,94947.0,94946.0,0.303]
[1746431225200,0.55064383,94947.0,94946.0,0.303]
[1746431228065,0.56715237,94947.0,94946.0,0.303]
[1746431233007,0.55064383,94947.0,94946.0,0.303]
[1746431238130,0.5671521,94947.0,94946.0,0.303]
[1746431238886,0.35650827,94947.0,94946.0,0.3347]
[1746431239087,0.35650827,94947.0,94946.0,0.54534605]
[1746431239262,0.35650827,94947.0,94946.0,0.3347]
[1746431239495,0.35650827,94947.0,94946.0,0.303]
[1746431244541,0.34,94947.0,94946.0,0.303]
[1746431247709,0.35650824,94947.0,94946.0,0.303]
[1746431248556,0.34,94947.0,94946.0,0.303]
[1746431253115,0.35650835,94947.0,94946.0,0.303]
[1746431255010,0.34,94947.0,94946.0,0.303]
[1746431258126,0.35650837,94947.0,94946.0,0.303]
[1746431263109,0.34,94947.0,94946.0,0.303]
[1746431266605,0.35650834,94947.0,94946.0,0.303]
[1746431274178,0.34,94947.0,94946.0,0.303]
[1746431278272,0.35650837,94947.0,94946.0,0.303]
[1746431282256,0.37712916,94947.0,94946.0,0.303]
[1746431282430,0.40680661,94947.0,94946.0,0.303]
[1746431282668,0.480843,94947.0,94946.0,0.003]
[1746431282872,1.012597,94947.0,94946.0,0.003]
[1746431283288,0.99608863,94947.0,94946.0,0.001]
[1746431283493,1.10160892,94947.0,94946.0,0.002]
[1746431284125,1.10160892,94947.0,94946.0,0.001]
[1746431284241,1.10360892,94947.0,94946.0,0.001]
[1746431284682,0.0153,94931.0,94929.0,0.3]
[1746431284886,0.01793365,94930.0,94929.0,0.3]
[1746431285345,0.35793365,94930.0,94929.0,0.3]
[1746431285553,0.3553,94930.0,94929.0,0.3]
[1746431285876,0.3553,94930.0,94929.0,0.30007177]
[1746431286077,0.3563,94930.0,94929.0,0.30007177]
[1746431286277,0.46182029,94930.0,94929.0,0.30007177]
[1746431286494,0.47712029,94930.0,94929.0,0.30007177]
[1746431286829,0.46182029,94930.0,94929.0,0.30007177]
[1746431287030,0.341,94930.0,94929.0,0.30007177]
[1746431289318,0.35751156,94930.0,94929.0,0.30007177]
[1746431293060,0.341,94930.0,94929.0,0.30007177]
[1746431296248,0.85005718,94930.0,94929.0,7.177e-05]
[1746431296446,0.95557747,94930.0,94929.0,7.177e-05]
[1746431296675,0.92262911,94930.0,94929.0,7.177e-05]
[1746431297395,0.89182029,94930.0,94929.0,7.177e-05]
[1746431297598,0.90833381,94930.0,94929.0,7.177e-05]
[1746431298745,0.87683381,94930.0,94929.0,7.177e-05]
[1746431300386,0.77131352,94930.0,94929.0,7.177e-05]
[1746431302443,0.80212234,94930.0,94929.0,7.177e-05]
[1746431303112,0.77131352,94930.0,94929.0,7.177e-05]
[1746431305159,0.7548,94930.0,94929.0,7.177e-05]
[1746431308428,0.77131354,94930.0,94929.0,7.177e-05]
[1746431308880,0.87683383,94930.0,94929.0,7.177e-05]
[1746431310635,0.77131354,94930.0,94929.0,7.177e-05]
[1746431314287,0.80092599,94930.0,94929.0,7.177e-05]
[1746431316478,0.78441245,94930.0,94929.0,7.177e-05]
[1746431321028,0.80092597,94930.0,94929.0,7.177e-05]
[1746431326550,0.78441245,94930.0,94929.0,7.177e-05]
[1746431329493,0.03061245,94930.0,94929.0,0.54135554]
[1746431329689,0.2106527,94943.0,94942.0,0.0306]
[1746431329889,0.35053252,94944.0,94942.0,0.0306]
[1746431330017,0.02965386,94943.0,94942.0,0.0306]
[1746431330893,0.04616505,94943.0,94942.0,0.0306]
[1746431331370,0.07697387,94943.0,94942.0,0.0306]
[1746431331627,0.07797387,94943.0,94942.0,0.0306]
[1746431331796,0.04832001,94943.0,94942.0,0.0306]
[1746431332864,0.01751119,94943.0,94942.0,0.0306]
[1746431333370,0.001,94943.0,94942.0,0.0306]
[1746431334029,0.2106527,94943.0,94942.0,0.0312]
[1746431338052,0.34,94944.0,94942.0,0.0312]
[1746431338274,0.34,94944.0,94941.0,0.3]
[1746431338275,0.34,94946.0,94943.0,0.0324]
[1746431338491,0.01053241,94945.0,94944.0,0.0324]
[1746431338902,0.56118068,94945.0,94944.0,0.0324]
[1746431339206,0.56118068,94945.0,94944.0,0.0314]
[1746431339414,0.5776914,94945.0,94944.0,0.0314]
[1746431340937,0.5776914,94945.0,94944.0,0.0324]
[1746431341747,0.5776914,94945.0,94944.0,0.0334]
[1746431341961,0.5776914,94945.0,94944.0,0.002]
[1746431342195,0.56118068,94945.0,94944.0,0.002]
[1746431346155,0.35053241,94945.0,94944.0,0.018]
[1746431346389,0.35053241,94945.0,94944.0,0.0337]
[1746431347033,0.34,94945.0,94944.0,0.0337]
[1746431349149,0.34,94945.0,94944.0,0.018]
[1746431349397,0.34,94945.0,94944.0,0.002]
[1746431351382,0.34,94945.0,94944.0,0.21265048]
[1746431354631,0.34,94945.0,94944.0,0.002]
[1746431356353,0.34,94945.0,94944.0,0.0346]
[1746431358339,0.21060202,94966.0,94959.0,0.54321721]
[1746431358575,0.13530611,94970.0,94966.0,0.22113092]
[1746431358769,0.13530611,94970.0,94966.0,0.25373092]
[1746431359050,0.13530611,94970.0,94968.0,0.0158]
[1746431359292,0.341,94969.0,94968.0,0.0158]
[1746431360030,0.342,94969.0,94968.0,0.0158]
[1746431360235,0.342,94969.0,94968.0,0.0321]
[1746431361252,0.341,94969.0,94968.0,0.0321]
[1746431361748,0.341,94969.0,94964.0,0.21060012]
[1746431362031,0.01052986,94968.0,94964.0,0.22113042]
[1746431363419,0.001,94969.0,94965.0,0.01053019]
[1746431363596,0.01152975,94969.0,94965.0,0.01053019]
[1746431364113,0.01052986,94968.0,94965.0,0.01053019]
[1746431364322,0.34,94964.0,94962.0,0.015]
[1746431364542,0.35053008,94966.0,94964.0,0.001]
[1746431365105,0.35053008,94966.0,94962.0,0.015]
[1746431365312,0.34,94966.0,94965.0,0.001]
[1746431365892,0.35052986,94968.0,94963.0,0.22113853]
[1746431366108,0.35052986,94968.0,94964.0,0.001]
[1746431366732,0.36703695,94968.0,94964.0,0.001]
[1746431367169,0.36703695,94968.0,94964.0,0.002]
[1746431367389,0.36703695,94968.0,94963.0,0.22113853]
[1746431367614,0.36703695,94968.0,94965.0,0.001]
[1746431368264,0.01052997,94967.0,94963.0,0.01053041]
[1746431368396,0.01052997,94967.0,94964.0,0.001]
[1746431369124,0.01052997,94967.0,94963.0,0.01053041]
[1746431369349,0.01052997,94967.0,94965.0,0.001]
[1746431370684,0.34,94963.0,94962.0,0.015]
[1746431370932,0.35053019,94965.0,94961.0,0.02573063]
[1746431371156,0.35053019,94965.0,94962.0,0.22114108]
[1746431371379,0.34,94965.0,94962.0,0.22114108]
[1746431371587,0.34,94965.0,94962.0,0.01053052]
[1746431371786,0.35053008,94966.0,94961.0,0.02573063]
[1746431371911,0.35053008,94966.0,94962.0,0.01153052]
[1746431372124,0.35053008,94966.0,94965.0,0.001]
[1746431373507,0.22113409,94965.0,94962.0,0.001]
[1746431373714,0.35053008,94966.0,94962.0,0.01053052]
[1746431373920,0.35053008,94966.0,94962.0,0.01153052]
[1746431374089,0.22113409,94965.0,94962.0,0.002]
[1746431374476,0.01053019,94965.0,94962.0,0.001]
[1746431375057,0.01053019,94965.0,94962.0,0.01253052]
[1746431375255,0.01053019,94965.0,94962.0,0.01153052]
[1746431375487,0.01053019,94965.0,94962.0,0.01053052]
[1746431375625,0.01053019,94965.0,94962.0,0.01253052]
[1746431379130,0.56112913,94968.0,94966.0,0.0164]
[1746431379391,0.001,94969.0,94968.0,0.21059725]
[1746431379553,0.001,94969.0,94968.0,0.24219725]
[1746431382083,0.01750594,94969.0,94968.0,0.24219725]
[1746431386281,0.001,94969.0,94968.0,0.24219725]
[1746431387700,0.001,94969.0,94968.0,0.24319725]
[1746431389413,0.01750584,94969.0,94968.0,0.24319725]
[1746431390043,0.01750584,94969.0,94968.0,0.21159725]
[1746431395041,0.001,94969.0,94968.0,0.21159725]
[1746431398110,0.01750602,94969.0,94968.0,0.21159725]
[1746431400164,0.48362236,94969.0,94968.0,0.001]
[1746431400328,0.41986518,94969.0,94968.0,0.001]
[1746431400539,0.40326518,94969.0,94968.0,0.001]
[1746431400739,0.38716518,94969.0,94968.0,0.001]
[1746431402553,0.37065916,94969.0,94968.0,0.001]
[1746431405840,0.38716584,94969.0,94968.0,0.001]
[1746431406438,0.37065916,94969.0,94968.0,0.001]
[1746431408217,0.03065916,94969.0,94968.0,0.3334]
[1746431408441,0.0164,94995.0,94986.0,0.22108507]
[1746431408442,0.21053807,94995.0,94986.0,0.22108507]
[1746431408667,0.01052709,94993.0,94986.0,0.22108507]
[1746431409124,0.00263187,94992.0,94986.0,0.22108507]
[1746431409359,0.01315907,94992.0,94986.0,0.22108507]
[1746431409584,0.01750327,94989.0,94986.0,0.22108507]
[1746431409794,0.02795568,94989.0,94986.0,0.22108507]
[1746431411109,0.02995568,94989.0,94986.0,0.22108507]
[1746431412439,0.01052764,94988.0,94985.0,0.3]
[1746431412657,0.02995568,94989.0,94986.0,0.01052786]
[1746431412867,0.02995568,94989.0,94986.0,0.22108515]
[1746431413686,0.02795568,94989.0,94986.0,0.22108515]
[1746431414113,0.002,94988.0,94986.0,0.22108515]
[1746431414526,0.02795568,94989.0,94986.0,0.22108515]
[1746431414726,0.02995568,94989.0,94986.0,0.22108515]
[1746431415171,0.02795568,94989.0,94986.0,0.22108515]
[1746431415380,0.03594802,94989.0,94986.0,0.22108515]
[1746431415581,0.002,94988.0,94986.0,0.22108515]
[1746431415774,0.002,94988.0,94987.0,0.34832]
[1746431417441,0.01944475,94989.0,94987.0,0.34832]
[1746431417682,0.02144475,94989.0,94987.0,0.34832]
[1746431418105,0.01944475,94989.0,94987.0,0.34832]
[1746431418437,0.002,94988.0,94987.0,0.34832]
[1746431419065,0.01944475,94989.0,94987.0,0.34832]
[1746431419283,0.02144475,94989.0,94987.0,0.34832]
[1746431419498,0.03794742,94989.0,94987.0,0.34832]
[1746431420299,0.34,94988.0,94987.0,0.34832]
[1746431420720,0.34,94988.0,94987.0,0.29554017]
[1746431421328,0.342,94988.0,94987.0,0.29554017]
[1746431423941,0.35850276,94988.0,94987.0,0.29554017]
[1746431424795,0.01850276,94988.0,94987.0,0.29554017]
[1746431425035,0.01850276,94988.0,94987.0,0.31184017]
[1746431426431,0.002,94988.0,94987.0,0.31184017]
[1746431426672,0.21255291,94988.0,94987.0,0.31184017]
[1746431426894,0.21255291,94988.0,94987.0,0.29554017]
[1746431427120,0.002,94988.0,94987.0,0.29554017]
[1746431427338,0.002,94988.0,94987.0,0.32694017]
[1746431429480,0.0185021,94988.0,94987.0,0.32694017]
[1746431429685,0.002,94988.0,94987.0,0.31043804]
[1746431431820,0.002,94988.0,94987.0,0.52099316]
[1746431436084,0.01850217,94988.0,94987.0,0.52099316]
[1746431436652,0.002,94988.0,94987.0,0.52099316]
[1746431439497,0.002,94988.0,94987.0,0.31043804]
[1746431439721,0.01850209,94988.0,94987.0,0.31043804]
[1746431440512,0.002,94988.0,94987.0,0.31043804]
[1746431443952,0.01850194,94988.0,94987.0,0.31043804]
[1746431446307,0.002,94988.0,94987.0,0.31043804]
[1746431449403,0.01850077,94988.0,94987.0,0.31043804]
[1746431452357,0.01850077,94988.0,94987.0,0.0314]
[1746431452556,0.40575718,94988.0,94985.0,0.3]
[1746431452758,0.37280882,94988.0,94985.0,0.3]
[1746431452982,0.37280882,94988.0,94980.0,0.34824]
[1746431453440,0.342,94988.0,94980.0,0.34824]
[1746431454322,0.3426319,94987.0,94984.0,0.3]
[1746431454563,0.34,94987.0,94984.0,0.3]
[1746431454804,0.00263202,94986.0,94984.0,0.3]
[1746431455434,0.002,94988.0,94984.0,0.3]
[1746431455689,0.00263202,94987.0,94984.0,0.3]
[1746431456327,0.001,94986.0,94980.0,0.34824]
[1746431456620,0.00263202,94987.0,94980.0,0.34824]
[1746431456824,0.00263203,94988.0,94980.0,0.34824]
[1746431459081,0.35944475,94989.0,94988.0,49.99736797]
[1746431459633,0.01944475,94989.0,94988.0,49.99736797]
[1746431459757,0.03594653,94989.0,94988.0,49.99736797]
[1746431462128,0.03694653,94989.0,94988.0,49.99736797]
[1746431462863,0.03594653,94989.0,94988.0,49.99736797]
[1746431463085,0.03694653,94989.0,94988.0,49.99736797]
[1746431463699,0.02044475,94989.0,94988.0,49.99736797]
[1746431464100,0.02244475,94989.0,94988.0,49.99736797]
[1746431464631,0.02244475,94989.0,94988.0,49.99423432]
[1746431465459,0.02244475,94989.0,94988.0,49.97013432]
[1746431466569,0.0389464,94989.0,94988.0,49.95070432]
[1746431467007,0.02244475,94989.0,94988.0,49.95070432]
[1746431469898,0.03894657,94989.0,94988.0,49.95070432]
[1746431470126,0.03794657,94989.0,94988.0,49.94507432]
[1746431470378,0.03694657,94989.0,94988.0,49.94507432]
[1746431470622,0.03894657,94989.0,94988.0,49.94507432]
[1746431471361,0.04094657,94989.0,94988.0,49.94507432]